bitfinex-derivatives/quotes_ETHF0:USTF0_20251118
["timestamp","ask_amount","ask_price","bid_price","bid_amount"]
[1763485401754,1.26873,3155.7,3155.6,0.84330522]
[1763485401949,0.51374,3155.6,3155.5,0.84806123]
[1763485402163,0.51374,3155.6,3155.5,1.65496123]
[1763485402363,1.26874,3155.6,3155.5,0.84806123]
[1763485402658,1.26874,3155.6,3155.5,0.00475601]
[1763485403056,0.00411571,3156.0,3155.9,0.8069]
[1763485403263,0.51779571,3156.0,3155.9,2.16509789]
[1763485403561,0.51779571,3156.0,3155.9,1.32059]
[1763485403756,0.51369,3155.9,3155.8,4.33381052]
[1763485403950,1.26869,3155.9,3155.8,1.12601052]
[1763485404149,0.49521571,3156.0,3155.7,1.93291052]
[1763485404354,1.26871,3155.8,3155.7,1.65214701]
[1763485404557,1.26871,3155.8,3155.7,4.85994701]
[1763485404763,0.5137,3155.9,3155.8,1.32059]
[1763485404963,1.2687,3155.9,3155.8,0.8069]
[1763485405462,0.5137,3155.9,3155.8,1.65214701]
[1763485406256,0.5137,3155.9,3155.8,2.16585701]
[1763485406552,0.00411571,3156.0,3155.9,1.32059]
[1763485406863,0.00411571,3156.0,3155.9,3.00960579]
[1763485407657,0.51779571,3156.0,3155.9,3.00960579]
[1763485407857,1.28289571,3156.0,3155.9,3.00960579]
[1763485408059,0.51779571,3156.0,3155.9,2.49591579]
[1763485408262,1.27879,3155.9,3155.8,1.68901579]
[1763485408459,1.27879,3155.9,3155.8,1.87856673]
[1763485409566,1.27879,3155.9,3155.8,1.13066673]
[1763485410066,1.27879,3155.9,3155.8,0.84871379]
[1763485410265,1.27881,3155.8,3155.7,0.84871379]
[1763485410563,0.51372,3155.8,3155.7,5.08636673]
[1763485410859,0.51372,3155.8,3155.7,5.60009673]
[1763485411065,0.51363,3156.3,3156.2,0.7479]
[1763485411261,0.51356,3156.7,3156.6,0.51356]
[1763485411461,0.00475601,3156.8,3156.7,0.7479]
[1763485412065,0.0070184,3156.8,3156.7,0.7479]
[1763485412271,0.0070184,3156.8,3156.7,1.26146]
[1763485412967,0.0070184,3156.8,3156.7,0.7479]
[1763485413168,1.27866,3156.7,3156.6,3.9557]
[1763485413462,0.51356,3156.7,3156.6,5.08424918]
[1763485414569,0.51356,3156.7,3156.6,3.9557]
[1763485415070,0.5205684,3156.8,3156.7,1.26146]
[1763485415266,0.0070184,3156.8,3156.7,1.59440185]
[1763485415465,0.0070184,3156.8,3156.7,2.38978813]
[1763485416175,0.0070184,3156.8,3156.7,1.26146]
[1763485416374,0.0070184,3156.8,3156.7,2.38942693]
[1763485416970,0.0070184,3156.8,3156.6,4.90429622]
[1763485416971,0.7651,3156.7,3156.6,4.90429622]
[1763485417171,0.0070184,3156.8,3156.7,0.7479]
[1763485417374,0.5205684,3156.8,3156.7,0.7479]
[1763485418184,0.5205684,3156.8,3156.6,3.2078]
[1763485418185,1.27866,3156.7,3156.6,3.2078]
[1763485418362,0.51356,3156.7,3156.6,3.9557]
[1763485419059,0.0070184,3156.8,3156.6,3.9557]
[1763485419060,0.5205684,3156.8,3156.7,0.51356]
[1763485419267,0.5205684,3156.8,3156.7,1.26146]
[1763485420576,0.5205684,3156.8,3156.7,0.7479]
[1763485421071,1.2856684,3156.8,3156.7,0.7479]
[1763485421268,0.51356,3156.7,3156.6,3.9557]
[1763485422067,0.5205684,3156.8,3156.7,0.7479]
[1763485422371,0.0070184,3156.8,3156.7,1.26146]
[1763485423078,0.5205684,3156.8,3156.7,0.7479]
[1763485424473,0.51356,3156.7,3156.6,3.9557]
[1763485425671,0.5205684,3156.8,3156.7,1.26146]
[1763485425877,0.5205684,3156.8,3156.7,0.7479]
[1763485427877,0.5205684,3156.8,3156.7,1.26146]
[1763485429180,0.5205684,3156.8,3156.7,0.7479]
[1763485429380,1.2856684,3156.8,3156.7,0.7479]
[1763485429578,1.27871,3156.4,3156.3,0.7479]
[1763485429783,0.51361,3156.4,3156.3,0.7479]
[1763485429973,1.27873,3156.3,3156.2,3.2078]
[1763485431976,0.51363,3156.3,3156.2,3.9557]
[1763485432180,0.51362,3156.4,3156.2,4.46934]
[1763485432375,0.5205684,3156.8,3156.7,1.26146]
[1763485432574,1.2856684,3156.8,3156.7,3.9557]
[1763485432882,0.5205684,3156.8,3156.7,3.9557]
[1763485433386,1.2856684,3156.8,3156.7,0.7479]
[1763485434084,0.0070184,3156.8,3156.7,4.46926]
[1763485434386,0.5205684,3156.8,3156.7,4.46926]
[1763485434686,0.0070184,3156.8,3156.7,5.5984732]
[1763485435889,0.0070184,3156.8,3156.7,4.46926]
[1763485436084,0.0070184,3156.8,3156.7,5.60129929]
[1763485436779,0.0070184,3156.8,3156.7,4.46926]
[1763485436981,0.5205684,3156.8,3156.7,3.9557]
[1763485437584,1.2856684,3156.8,3156.7,4.05713178]
[1763485438892,0.5205684,3156.8,3156.7,4.78283178]
[1763485439184,2.25335144,3158.1,3156.7,4.78283178]
[1763485439185,2.84482664,3159.0,3158.1,3.2078]
[1763485439384,0.399,3160.0,3158.9,3.2078]
[1763485439580,1.59863,3160.0,3159.9,0.84716698]
[1763485439790,0.51316,3159.2,3159.1,1.69433852]
[1763485440088,0.68951006,3159.2,3159.1,2.52259943]
[1763485440274,0.00291006,3159.2,3159.1,2.52545862]
[1763485440477,0.00291006,3159.2,3159.1,2.52562337]
[1763485440688,0.68951006,3159.2,3159.1,2.52562337]
[1763485440985,0.68951006,3159.2,3159.1,0.82826091]
[1763485441782,0.68951006,3159.2,3158.8,0.51795766]
[1763485441783,1.19981,3158.9,3158.8,1.70211012]
[1763485442083,0.6866,3158.9,3158.8,0.83613501]
[1763485442280,0.399,3159.0,3158.8,0.83613501]
[1763485442480,0.00291006,3159.2,3159.0,0.51318]
[1763485442694,0.00291006,3159.2,3159.0,3.72098]
[1763485442989,0.6866,3159.1,3159.0,3.21113329]
[1763485443593,1.19984,3158.7,3158.6,4.90516246]
[1763485443892,0.91229,3158.4,3158.2,4.90516246]
[1763485444587,0.91229,3158.4,3158.2,3.21089371]
[1763485444885,0.399,3158.4,3158.2,3.72420371]
[1763485445085,0.51322,3158.8,3158.5,0.51327]
[1763485445291,0.51322,3158.8,3158.7,3.2078]
[1763485445490,1.19982,3158.8,3158.7,3.2078]
[1763485446691,0.51322,3158.8,3158.7,3.2078]
[1763485448493,0.399,3159.0,3158.7,3.2078]
[1763485448884,0.51321,3158.9,3158.7,3.2078]
[1763485449086,0.91219,3159.0,3158.7,3.2078]
[1763485449284,0.00291006,3159.2,3158.7,3.2078]
[1763485449496,0.51607006,3159.2,3159.1,3.2078]
[1763485450086,0.00291006,3159.2,3159.1,3.72097]
[1763485451088,0.51607006,3159.2,3159.1,3.72097]
[1763485451290,0.00291006,3159.2,3159.1,3.72097]
[1763485452192,3.611,3160.7,3159.7,0.51307]
[1763485452498,0.51301,3160.1,3159.9,3.72084]
[1763485452696,3.611,3160.7,3159.9,3.2078]
[1763485452697,0.91203,3160.0,3159.9,3.2078]
[1763485453089,0.91577034,3160.0,3159.9,3.2078]
[1763485453295,0.51308,3159.7,3159.6,0.00474766]
[1763485453498,1.19968,3159.7,3159.6,0.00474766]
[1763485455497,0.51307,3159.8,3159.7,0.51306]
[1763485455693,0.51307,3159.8,3159.6,0.00474766]
[1763485455694,0.51308,3159.7,3159.6,0.51783766]
[1763485455897,0.40274034,3160.0,3159.6,0.51783766]
[1763485455898,0.40274034,3160.0,3159.7,0.51306]
[1763485456093,0.51304,3159.9,3159.8,0.82197334]
[1763485456296,0.6866,3159.9,3159.6,0.00474766]
[1763485456496,0.51308,3159.7,3159.6,0.00474766]
[1763485456799,1.19968,3159.7,3159.6,0.00474766]
[1763485457185,4.40748,3159.7,3159.6,0.00474766]
[1763485457398,1.19976,3159.2,3159.1,3.2078]
[1763485459702,0.399,3159.6,3159.1,3.2078]
[1763485459892,0.51314,3159.3,3159.2,1.33604215]
[1763485460086,0.51314,3159.3,3159.2,0.82288215]
[1763485460396,0.51316,3159.2,3159.1,3.72097]
[1763485460593,0.51316,3159.2,3159.1,4.54362466]
[1763485460795,0.399,3159.6,3159.1,4.03045466]
[1763485460996,0.91209,3159.6,3159.5,3.2078]
[1763485461206,1.74749,3159.6,3159.5,3.2078]
[1763485461499,0.91209,3159.6,3159.5,3.2078]
[1763485462603,1.74749,3159.6,3159.5,3.2078]
[1763485464903,1.34857,3159.1,3159.0,3.2078]
[1763485466200,0.51317,3159.1,3159.0,3.2078]
[1763485466407,1.34857,3159.1,3159.0,3.2078]
[1763485467998,0.399,3159.6,3158.8,0.00474766]
[1763485467999,0.51321,3158.9,3158.8,0.00474766]
[1763485468205,1.353,3158.3,3158.2,0.00309371]
[1763485468498,0.5133,3158.3,3158.2,0.00309371]
[1763485469103,0.5285,3158.5,3158.2,0.00309371]
[1763485469406,1.04177,3158.5,3158.4,3.2078]
[1763485469795,1.04177,3158.5,3158.4,4.33691256]
[1763485470204,1.88147,3158.5,3158.4,1.12911256]
[1763485470403,1.3682,3158.0,3157.9,0.00474766]
[1763485470609,1.88155,3158.0,3157.9,0.00474766]
[1763485471599,1.88155,3158.0,3157.9,0.00809387]
[1763485472911,0.5285,3158.0,3157.9,0.52146387]
[1763485473100,0.5285,3158.0,3157.9,0.00809387]
[1763485473101,1.04185,3158.0,3157.9,0.00809387]
[1763485473301,1.88155,3158.0,3157.9,0.00809387]
[1763485479796,1.88155,3158.0,3157.2,1.68307447]
[1763485479797,0.5285,3157.5,3157.2,3.2078]
[1763485479996,1.35317,3157.3,3157.2,3.09779416]
[1763485480208,1.35317,3157.3,3157.2,1.73876416]
[1763485480412,1.8818,3156.5,3156.4,3.2078]
[1763485480601,1.8818,3156.5,3156.4,0.80057119]
[1763485480906,1.3682,3156.5,3156.4,0.00232445]
[1763485481306,1.8818,3156.5,3156.4,0.00232445]
[1763485482010,1.8840345,3156.5,3156.4,0.00232445]
[1763485482804,1.0443345,3156.5,3156.4,0.00232445]
[1763485483699,0.0022345,3156.5,3156.4,1.31413594]
[1763485484095,0.5158345,3156.5,3156.4,1.31413594]
[1763485485208,0.0022345,3156.5,3156.4,1.31413594]
[1763485485416,1.0443345,3156.5,3156.4,1.31413594]
[1763485485807,0.5307345,3156.5,3156.4,1.31413594]
[1763485486713,1.0443345,3156.5,3156.4,0.80052594]
[1763485486916,1.8840345,3156.5,3156.4,0.80052594]
[1763485487110,1.8840345,3156.5,3156.4,0.00232445]
[1763485490217,0.5307345,3156.5,3156.4,0.00232445]
[1763485490411,0.0022345,3156.5,3156.4,0.51593445]
[1763485490807,0.5307345,3156.5,3156.4,2.62493445]
[1763485491016,0.5307345,3156.5,3156.4,1.31257772]
[1763485491419,0.0022345,3156.5,3156.4,1.31257772]
[1763485491919,0.00474766,3156.8,3156.7,0.51356]
[1763485492115,0.00474766,3156.8,3156.7,4.51800327]
[1763485492910,0.00714705,3156.8,3156.7,4.51800327]
[1763485495122,0.51351,3157.2,3157.1,0.5135]
[1763485495313,3.2078,3157.6,3157.1,4.00444327]
[1763485495620,0.51347,3157.3,3157.2,0.79664327]
[1763485496115,0.51729646,3157.3,3157.2,0.79664327]
[1763485496912,0.51729646,3157.3,3157.2,4.00444327]
[1763485497317,1.35699646,3157.3,3157.2,4.00444327]
[1763485498415,0.84352646,3157.3,3157.2,1.31012327]
[1763485498617,0.00382646,3157.3,3157.2,1.31012327]
[1763485499320,0.51729646,3157.3,3157.2,0.79664327]
[1763485499531,0.51729646,3157.3,3157.2,1.31012327]
[1763485500225,1.41549646,3157.3,3157.2,1.64395111]
[1763485501117,0.51348,3157.2,3157.1,0.84730784]
[1763485501426,0.51729646,3157.3,3157.2,0.51348]
[1763485501615,0.00382646,3157.3,3157.2,5.40435447]
[1763485501923,0.5441,3157.5,3157.2,3.2078]
[1763485502223,1.95573,3157.5,3157.4,1.12929543]
[1763485502427,1.05753,3157.5,3157.4,0.84691318]
[1763485502722,1.41165,3157.4,3157.3,0.84691318]
[1763485502923,1.41553426,3157.4,3157.3,0.84691318]
[1763485503319,0.51733426,3157.4,3157.3,0.51347]
[1763485503524,0.51733426,3157.4,3157.2,4.33709543]
[1763485503525,0.51347,3157.3,3157.2,4.33709543]
[1763485503915,1.41167,3157.3,3157.2,4.33709543]
[1763485504412,1.41167,3157.3,3157.2,3.2078]
[1763485505022,0.51347,3157.3,3157.2,3.2078]
[1763485505629,1.41167,3157.3,3157.2,3.2078]
[1763485505820,1.41167,3157.3,3157.2,3.72128]
[1763485506424,0.00388426,3157.4,3157.3,0.51347]
[1763485506624,0.51338,3157.9,3157.8,0.51337]
[1763485506835,1.41158,3157.9,3157.8,4.56916709]
[1763485507120,0.51338,3157.9,3157.8,3.72118]
[1763485507621,0.51604877,3157.9,3157.8,4.056091]
[1763485508027,0.51604877,3157.9,3157.8,3.2078]
[1763485508227,0.51604877,3157.9,3157.8,3.72118]
[1763485508420,0.00266877,3157.9,3157.8,4.85175138]
[1763485508629,1.41423877,3157.9,3157.8,3.2078]
[1763485508822,1.41423877,3157.9,3157.8,4.0556667]
[1763485509331,1.41162,3157.6,3157.5,3.2078]
[1763485509521,1.41162,3157.6,3157.5,0.4222]
[1763485510117,0.51604877,3157.9,3157.8,0.8768]
[1763485511225,0.00266877,3157.9,3157.8,1.39018]
[1763485511525,0.5133,3158.3,3158.2,0.8768]
[1763485511727,0.51329,3158.4,3158.3,0.51329]
[1763485511927,3.2078,3158.7,3158.5,0.5493]
[1763485512225,0.51331,3158.3,3158.2,0.51331]
[1763485512430,0.51334,3158.1,3158.0,1.4261]
[1763485512631,1.25864,3158.1,3158.0,0.5493]
[1763485513021,1.25864,3158.1,3157.9,0.00474766]
[1763485513022,1.25865,3158.0,3157.9,0.00474766]
[1763485515224,1.25405,3157.4,3157.3,3.2078]
[1763485515926,3.2078,3157.4,3156.7,0.51356]
[1763485516139,0.5135,3157.1,3157.0,1.4261]
[1763485516324,1.2541,3157.1,3157.0,0.5493]
[1763485517027,0.5135,3157.1,3157.0,1.93961]
[1763485517529,0.51355,3156.8,3156.7,0.51830766]
[1763485517727,3.2078,3157.4,3156.7,0.51830766]
[1763485517728,3.2078,3157.4,3156.7,0.00474766]
[1763485517935,0.51351,3157.1,3156.9,0.51352]
[1763485518135,0.51351,3157.0,3156.9,0.51352]
[1763485518337,0.51354,3156.9,3156.8,0.51355]
[1763485518831,3.2078,3157.4,3156.9,0.51352]
[1763485519336,1.25415,3156.8,3156.7,1.70060473]
[1763485519933,1.25415,3156.8,3156.7,0.00474766]
[1763485520434,1.25415,3156.8,3156.0,0.5493]
[1763485520435,0.51381,3155.2,3155.1,3.2078]
[1763485520637,0.51381,3155.2,3155.0,0.5493]
[1763485520638,0.51381,3155.2,3155.0,0.5704]
[1763485521029,3.2078,3155.3,3154.5,0.5704]
[1763485521030,0.51391,3154.6,3154.5,0.5704]
[1763485521333,1.1385393,3155.5,3155.4,1.4887]
[1763485521531,1.70780896,3155.7,3155.4,1.4887]
[1763485521532,0.51373,3155.7,3155.5,0.9183]
[1763485521833,0.51373,3155.7,3155.4,0.57383549]
[1763485521834,0.51376,3155.5,3155.4,0.57383549]
[1763485522035,0.00240253,3155.7,3155.4,0.57383549]
[1763485522232,0.51613253,3155.7,3155.4,0.57383549]
[1763485522439,0.51375,3155.6,3155.5,0.9183]
[1763485522639,0.00240253,3155.7,3155.4,0.57383549]
[1763485522838,0.51374,3155.6,3155.5,0.9183]
[1763485523339,0.00240253,3155.7,3155.6,1.43204]
[1763485523541,0.00240253,3155.7,3155.6,0.9183]
[1763485523737,0.51374,3155.6,3155.4,1.08760549]
[1763485524130,0.51613253,3155.7,3155.5,0.51375]
[1763485524436,0.51613253,3155.7,3155.6,0.9183]
[1763485524942,0.00240253,3155.7,3155.6,0.9183]
[1763485525438,0.00240253,3155.7,3155.6,1.43204]
[1763485525840,0.51613253,3155.7,3155.6,0.9183]
[1763485526341,0.51613253,3155.7,3155.5,0.51376]
[1763485526542,0.51613253,3155.7,3155.6,0.9183]
[1763485526841,0.00474766,3155.8,3155.7,1.43203]
[1763485527232,1.1385393,3157.3,3156.6,0.51358]
[1763485527233,3.2078,3157.3,3156.6,0.51358]
[1763485527428,0.51356,3156.7,3156.6,0.9014]
[1763485527844,0.51689099,3156.7,3156.6,0.9014]
[1763485528337,0.00333099,3156.7,3156.6,1.99178]
[1763485528538,0.51689099,3156.7,3156.6,1.99178]
[1763485528743,0.00333099,3156.7,3156.6,1.99178]
[1763485529040,0.51689099,3156.7,3156.6,1.99178]
[1763485529435,0.51689099,3156.7,3156.6,0.9014]
[1763485529637,0.51359,3156.6,3156.2,3.2078]
[1763485529839,0.00333099,3156.7,3156.6,1.99178]
[1763485530755,0.51689099,3156.7,3156.6,1.4782]
[1763485531653,0.00333099,3156.7,3156.6,1.4782]
[1763485531857,0.51689099,3156.7,3156.6,0.9014]
[1763485532051,0.51361,3156.5,3156.4,1.415]
[1763485532253,0.51358,3156.6,3156.5,1.41499]
[1763485532953,0.51358,3156.6,3156.5,0.9014]
[1763485533157,0.51361,3156.4,3156.3,1.41501]
[1763485533459,0.51361,3156.4,3156.3,0.9014]
[1763485533660,0.00333099,3156.7,3156.6,0.9014]
[1763485533860,0.51363,3156.4,3156.3,1.41503]
[1763485534865,0.5136,3156.5,3156.4,1.415]
[1763485535461,0.5136,3156.5,3156.4,0.9014]
[1763485535659,1.46513,3156.3,3156.2,3.2078]
[1763485535859,0.51363,3156.3,3156.2,4.1092]
[1763485536056,0.5136,3156.5,3156.4,0.9014]
[1763485536559,0.5136,3156.5,3156.4,1.41501]
[1763485536952,0.51366,3156.1,3156.0,1.4782]
[1763485537257,0.00333099,3156.7,3155.4,3.21123549]
[1763485537258,1.46526,3155.5,3155.4,3.21123549]
[1763485537656,1.46526,3155.5,3155.4,0.00343549]
[1763485537856,0.51376,3155.5,3155.4,1.48163549]
[1763485538154,0.5508,3156.5,3155.4,1.48163549]
[1763485538155,0.51374,3155.6,3155.5,0.9014]
[1763485538358,0.51376,3155.5,3155.4,0.00343549]
[1763485538561,0.51374,3155.6,3155.5,0.9014]
[1763485539252,0.51376,3155.5,3155.4,0.90483549]
[1763485539663,0.51373,3155.8,3155.7,0.9014]
[1763485540346,3.2078,3156.1,3155.7,0.9014]
[1763485540549,3.7586,3156.5,3155.7,0.9014]
[1763485540755,3.7586,3156.5,3155.4,0.58023549]
[1763485540756,0.5136,3156.5,3156.4,0.9014]
[1763485541363,0.51361,3156.5,3156.4,0.9014]
[1763485541553,0.51363,3156.3,3156.2,0.51364]
[1763485541755,0.51363,3156.3,3156.2,0.9014]
[1763485542063,0.51363,3156.3,3156.0,3.7846]
[1763485542064,0.51366,3156.1,3156.0,1.4782]
[1763485542260,3.72470099,3156.7,3156.1,1.41506]
[1763485542464,3.21113099,3156.7,3156.0,3.7846]
[1763485542666,0.51362,3156.4,3156.3,0.9014]
[1763485542961,0.51364,3156.2,3156.1,0.9014]
[1763485543164,3.21113099,3156.7,3155.8,0.5137]
[1763485543370,0.51369,3155.9,3155.8,0.9014]
[1763485543859,0.51371,3155.9,3155.8,0.9014]
[1763485544257,0.51371,3155.9,3155.8,1.41511]
[1763485544868,0.51371,3155.9,3155.8,0.9014]
[1763485545069,0.51376,3155.5,3155.4,1.48163549]
[1763485546061,3.2078,3155.9,3155.4,0.58023549]
[1763485546458,0.51376,3155.5,3155.4,1.99539549]
[1763485547066,0.51376,3155.5,3155.4,1.48163549]
[1763485547766,0.51376,3155.5,3155.4,1.99540549]
[1763485548963,3.2078,3155.9,3155.8,0.9014]
[1763485549362,0.5508,3156.6,3156.1,0.9014]
[1763485549363,0.51366,3156.2,3156.1,0.9014]
[1763485549663,3.21113099,3156.7,3156.2,0.9014]
[1763485549864,3.21113099,3156.7,3156.0,0.5768]
[1763485549865,0.5136,3156.5,3156.4,1.41501]
[1763485550168,3.21113099,3156.7,3156.6,0.9014]
[1763485550370,3.72470099,3156.7,3156.6,0.9014]
[1763485550568,0.51690099,3156.7,3156.6,0.9014]
[1763485550773,0.00333099,3156.7,3156.6,1.41498]
[1763485555373,0.00333099,3156.7,3156.3,1.69484272]
[1763485555374,0.00333099,3156.7,3156.3,2.5446122]
[1763485555568,0.51361,3156.5,3156.4,1.41501]
[1763485556571,0.51363,3156.3,3156.2,1.41504]
[1763485556872,0.51368,3156.0,3155.9,2.0309822]
[1763485557074,0.51368,3156.0,3155.9,0.9014]
[1763485558175,0.51371,3155.8,3155.7,4.61963]
[1763485558972,0.51371,3155.8,3155.7,4.1059]
[1763485560174,3.2078,3156.3,3155.7,4.61963]
[1763485560372,0.51371,3155.9,3155.8,1.41181]
[1763485560867,0.51368,3156.0,3155.9,1.41179]
[1763485561063,0.51368,3156.0,3155.9,0.8981]
[1763485561775,0.51371,3155.8,3155.7,4.1059]
[1763485561975,1.91996,3155.5,3155.4,0.00343549]
[1763485562166,0.8554,3154.4,3154.3,1.1295822]
[1763485562479,0.51404,3153.8,3153.7,1.16129149]
[1763485562669,0.51403,3153.9,3153.7,2.57344149]
[1763485562870,3.2078,3154.5,3153.7,2.57344149]
[1763485562871,0.514,3154.1,3153.7,2.57344149]
[1763485563066,0.51404,3153.8,3153.7,0.93381879]
[1763485563266,0.51697822,3154.1,3154.0,0.8981]
[1763485563473,0.00298822,3154.1,3153.9,0.51402]
[1763485563672,0.00298822,3154.1,3154.0,4.6199]
[1763485563877,3.2078,3154.9,3154.8,1.433]
[1763485564175,3.2078,3156.1,3155.6,0.8981]
[1763485564474,0.51373,3155.7,3155.6,0.8981]
[1763485564880,0.51659901,3155.7,3155.6,0.8981]
[1763485565783,0.51376,3155.5,3155.4,1.04867]
[1763485566080,0.51377,3155.4,3155.3,0.00475534]
[1763485566378,1.36917,3155.4,3155.3,0.00475534]
[1763485566680,0.51392,3154.5,3154.4,0.8981]
[1763485568277,0.51395,3154.3,3154.2,0.5349]
[1763485568581,3.2078,3154.7,3154.2,0.5349]
[1763485568782,0.51395,3154.3,3154.2,1.433]
[1763485569483,0.51395,3154.4,3154.3,0.8981]
[1763485570775,3.2078,3154.7,3154.1,0.00475534]
[1763485571081,0.51397,3154.2,3154.1,0.90285534]
[1763485571284,3.2078,3154.7,3154.2,1.04886]
[1763485571483,3.2078,3154.7,3154.2,1.94697]
[1763485571678,0.51395,3154.3,3154.2,1.433]
[1763485571881,1.36937,3154.2,3154.1,0.00475534]
[1763485572182,0.51394,3154.4,3154.2,0.5349]
[1763485572379,0.51394,3154.4,3154.3,0.8981]
[1763485572981,3.2078,3154.7,3154.2,0.5349]
[1763485572982,0.51395,3154.3,3154.2,1.41207]
[1763485573182,3.2078,3154.7,3154.2,1.94697]
[1763485573381,0.51383,3155.1,3155.0,0.8981]
[1763485573681,0.00286901,3155.7,3154.7,0.51389]
[1763485573682,0.51387,3154.9,3154.7,0.51389]
[1763485573876,0.00286901,3155.7,3155.6,1.41184]
[1763485574071,3.2078,3156.4,3156.0,1.433]
[1763485574278,0.51366,3156.1,3156.0,1.433]
[1763485574478,0.51366,3156.2,3155.6,3.2078]
[1763485574687,0.51367,3156.1,3156.0,0.8981]
[1763485575081,0.51367,3156.1,3155.6,3.2078]
[1763485575082,0.51369,3156.0,3155.9,0.51369]
[1763485575387,0.51768105,3156.1,3156.0,1.433]
[1763485575683,1.36908,3156.0,3155.9,0.00315787]
[1763485575882,0.51368,3156.0,3155.9,0.00315787]
[1763485576089,0.51368,3156.0,3155.9,0.90125787]
[1763485576282,0.00402105,3156.1,3155.9,0.90125787]
[1763485576482,0.51368,3156.0,3155.9,0.90125787]
[1763485577383,1.36908,3156.0,3155.9,0.00315787]
[1763485577888,1.36921,3155.2,3155.1,3.2078]
[1763485578194,0.51381,3155.2,3155.1,3.2078]
[1763485578488,0.8554,3155.2,3154.5,3.2078]
[1763485578686,0.5139,3154.6,3154.5,3.2078]
[1763485578891,0.5139,3154.6,3154.5,3.21065702]
[1763485579496,3.2078,3155.5,3154.8,0.5349]
[1763485579688,0.51384,3155.0,3154.9,3.2078]
[1763485580587,3.2078,3155.5,3154.9,3.2078]
[1763485580892,0.51377,3155.4,3155.3,4.0743]
[1763485581089,0.51377,3155.4,3155.3,3.2078]
[1763485582588,0.51377,3155.4,3155.3,4.0743]
[1763485583497,0.51377,3155.4,3155.3,4.58809]
[1763485583996,3.2078,3155.9,3155.5,0.8665]
[1763485584601,3.2078,3155.9,3155.3,3.2078]
[1763485584800,0.51377,3155.5,3155.4,1.87007]
[1763485585094,0.51377,3155.5,3155.4,1.3563]
[1763485585303,0.00402105,3156.1,3155.8,0.8665]
[1763485585596,0.51369,3155.9,3155.8,0.8665]
[1763485586194,0.51381,3155.3,3155.2,3.2078]
[1763485586396,0.51377,3155.4,3155.3,1.38029]
[1763485587287,0.51377,3155.4,3155.3,0.8665]
[1763485587787,0.51379,3155.3,3155.2,3.2078]
[1763485587989,0.51379,3155.3,3155.2,4.0095]
[1763485588388,0.51379,3155.3,3155.2,4.52331]
[1763485588592,0.51378,3155.4,3155.3,1.31549]
[1763485588897,0.51378,3155.4,3155.3,0.8017]
[1763485590901,0.51378,3155.4,3155.3,1.31549]
[1763485591101,0.51378,3155.4,3155.3,0.8017]
[1763485591402,0.51378,3155.4,3155.3,1.31549]
[1763485591602,0.5078,3156.0,3155.5,0.8017]
[1763485591804,0.51379,3155.4,3155.3,0.8017]
[1763485592690,0.5138,3155.3,3155.2,3.2078]
[1763485592894,0.5138,3155.3,3155.2,4.0095]
[1763485594207,1.361,3155.3,3155.2,3.2078]
[1763485594706,0.5138,3155.3,3155.2,4.0095]
[1763485595102,1.361,3155.3,3155.2,3.2078]
[1763485595694,3.2078,3155.8,3154.8,1.33958052]
[1763485595695,0.51386,3154.9,3154.8,5.34908052]
[1763485596101,1.36106,3154.9,3154.8,3.2078]
[1763485597001,0.51386,3154.9,3154.8,4.0095]
[1763485597803,0.51386,3154.9,3154.8,3.2078]
[1763485597804,1.36106,3154.9,3154.8,3.2078]
[1763485598196,1.3611,3154.6,3154.5,0.00285702]
[1763485598403,4.5689,3154.6,3154.5,0.00285702]
[1763485599309,0.5139,3154.6,3154.5,0.80455702]
[1763485599705,4.5689,3154.6,3154.5,0.00285702]
[1763485601505,4.5689,3154.6,3154.5,0.80455702]
[1763485601709,4.5689,3154.6,3154.5,0.00285702]
[1763485601912,4.5689,3154.6,3153.7,0.03170929]
[1763485601913,1.36124,3153.8,3153.7,0.03170929]
[1763485602099,0.51413,3153.2,3153.1,4.0095]
[1763485602402,0.51413,3153.2,3153.1,0.8017]
[1763485602904,0.51808871,3153.2,3153.1,0.80492429]
[1763485603607,1.36528871,3153.2,3153.1,0.00322429]
[1763485604602,0.51808871,3153.2,3153.1,0.80492429]
[1763485605505,1.36528871,3153.2,3153.1,0.00322429]
[1763485605810,1.36528871,3153.2,3153.1,1.31907429]
[1763485605811,0.00395871,3153.2,3153.1,1.31907429]
[1763485607213,0.00475534,3153.5,3153.4,1.3158]
[1763485607415,0.51883534,3153.5,3153.4,1.3158]
[1763485607814,0.51883534,3153.5,3153.4,0.8017]
[1763485608212,0.51413,3153.2,3153.1,0.80492429]
[1763485609105,0.00817265,3153.5,3153.4,0.8017]
[1763485609305,0.51413,3153.2,3153.1,0.80492429]
[1763485609714,0.51413,3153.2,3153.1,1.31907429]
[1763485610612,0.51413,3153.2,3153.1,0.80492429]
[1763485611816,1.36133,3153.2,3153.1,0.00322429]
[1763485612025,0.8472,3152.2,3152.1,3.2078]
[1763485612216,3.2078,3152.7,3152.6,0.8017]
[1763485612517,3.72201,3152.7,3152.6,0.8017]
[1763485613019,3.2078,3152.7,3152.6,0.00372261]
[1763485613315,3.21617265,3153.5,3152.6,0.00372261]
[1763485613316,0.5142,3152.9,3152.8,0.5142]
[1763485613520,0.5142,3152.9,3152.8,0.8017]
[1763485613712,0.5142,3152.9,3152.6,0.51793261]
[1763485613713,0.51421,3152.7,3152.6,0.00372261]
[1763485613919,0.51421,3152.7,3152.6,0.80542261]
[1763485614116,1.36141,3152.7,3152.6,0.00372261]
[1763485614715,0.51421,3152.7,3152.6,0.80542261]
[1763485615016,0.51421,3152.7,3152.6,0.00372261]
[1763485615017,4.56921,3152.7,3152.6,0.00372261]
[1763485617213,1.78816,3151.8,3151.7,3.2078]
[1763485617423,0.5144,3151.6,3151.5,0.8336]
[1763485617914,0.51444,3151.4,3151.3,0.51444]
[1763485618115,3.2078,3152.1,3151.5,0.8336]
[1763485618318,0.51439,3151.6,3151.5,0.84064613]
[1763485618710,0.51439,3151.6,3151.5,1.35505613]
[1763485618913,0.51436,3151.8,3151.7,0.8336]